Workbook

Sheet START
B1: INFORMATIONEN ZU DIESER VORLAGE
B2: Verfolgen Sie mithilfe dieses Website-Budget-Tools die Anfangsinvestitionen in die Website, ihren Nutzen und ihre Kosten nach.
B3: Geben Sie Details in Tabellen ein, um Summen und die Auswertungsmetriken automatisch zu berechnen.
B4: Notiz:
B5: Zusätzliche Anweisungen finden Sie in der Spalte A des Arbeitsblatts BUDGET-TOOL. Dieser Text wurde absichtlich ausgeblendet. Um die Texte zu entfernen, wählen Sie Spalte A und dann ENTF aus. Um die Texte einzublenden, wählen Sie Spalte A aus, und ändern Sie die Schriftfarbe.
B6: Um mehr über die Tabellen im Arbeitsblatt zu erfahren, drücken Sie die UMSCHALTTASTE und dann F10 innerhalb einer Tabelle, wählen Sie die Option TABELLE und dann ALTERNATIVTEXT aus.

Sheet BUDGETTOOL
B2: Quadrex-Hardware
B3: WEBSITE-BUDGET-TOOL
B4: 2022-12-01
B6: Unternehmensdaten | C6: Prozentsatz
B7: Erforderlicher Zinsfuß | C7: 10%
B8: Steuersatz | C8: 30%
B10: Anfangsinvestition in die Website | C10: Jahr
B11: Hardware (z. B. Server) | C11: 25,000.00 €
B12: Software (z. B. Software für e-Commerce-Katalog) | C12: 15,000.00 €
B13: Entwicklung (z. B. Entwurf und Entwicklung von Drittanbietern) | C13: 150,000.00 €
B14: Gesamtbetrag der Anfangsinvestitionen | C14: =SUBTOTAL(109,AnfangsInvest[Jahr]) -> 190,000.00 €
B16: Nutzen der Website | C16: Jahr 1 | D16: Jahr 2 | E16: Jahr 3
B17: Direktverkäufe | C17: 15,000.00 € | D17: 50,000.00 € | E17: 75,000.00 €
B18: Gesteigerte Verkäufe aufgrund besserer Effektivität von Werbung/Verkäufern | C18: 25,000.00 € | D18: 25,000.00 € | E18: 25,000.00 €
B19: Gesteigerte Verkäufe aufgrund stärkerer Beteiligung von Partnern | C19: 25,000.00 € | D19: 25,000.00 € | E19: 25,000.00 €
B20: Verringerte Reisekosten | C20: 25,000.00 € | D20: 25,000.00 € | E20: 25,000.00 €
B21: Verringerte Kosten für Kundendienst | C21: 50,000.00 € | D21: 50,000.00 € | E21: 50,000.00 €
B22: Gesamtnutzen | C22: =SUBTOTAL(109,Nutzen[Jahr 1]) -> 140,000.00 € | D22: =SUBTOTAL(109,Nutzen[Jahr 2]) -> 175,000.00 € | E22: =SUBTOTAL(109,Nutzen[Jahr 3]) -> 200,000.00 €
B24: Kosten (ohne Anfangsinvestitionen) | C24: JAHR 1 | D24: JAHR 2 | E24: JAHR 3
B25: Vertriebskosten | C25: 7,500.00 € | D25: 25,000.00 € | E25: 37,500.00 €
B26: Wartung | C26: 15,000.00 € | D26: 15,000.00 € | E26: 15,000.00 €
B27: Projektmanagement, Kundensupport | C27: 35,000.00 € | D27: 35,000.00 € | E27: 35,000.00 €
B28: Onlinewerbung, Suchmaschinenregistrierung | C28: 10,000.00 € | D28: 10,000.00 € | E28: 10,000.00 €
B29: Abschreibung auf Investitionsausgaben (Berechnung über Zeitraum von drei Jahren) | C29: =AnfangsInvest[[#Totals],[Jahr]]/3 -> 63,333.33 € | D29: =AnfangsInvest[[#Totals],[Jahr]]/3 -> 63,333.33 € | E29: =AnfangsInvest[[#Totals],[Jahr]]/3 -> 63,333.33 €
B30: Gesamtkosten | C30: =SUBTOTAL(109,Kosten[JAHR 1]) -> 130,833.33 € | D30: =SUBTOTAL(109,Kosten[JAHR 2]) -> 148,333.33 € | E30: =SUBTOTAL(109,Kosten[JAHR 3]) -> 160,833.33 €
B32: Gesamtbetrag | D32: Jahr 1 | E32: Jahr 2 | F32: Jahr 3
B33: Nettonutzen (Kosten) | D33: =Nutzen[[#Totals],[Jahr 1]]-Kosten[[#Totals],[JAHR 1]] -> 9,166.67 € | E33: =Nutzen[[#Totals],[Jahr 2]]-Kosten[[#Totals],[JAHR 2]] -> 26,666.67 € | F33: =Nutzen[[#Totals],[Jahr 3]]-Kosten[[#Totals],[JAHR 3]] -> 39,166.67 €
B34: Steuern | D34: =D33*Steuersatz -> 2,750.00 € | E34: =E33*Steuersatz -> 8,000.00 € | F34: =F33*Steuersatz -> 11,750.00 €
B35: Wert nach Steuern | D35: =D33-D34 -> 6,416.67 € | E35: 18,666.67 € | F35: 27,416.67 €
B36: Zuzüglich Abschreibung | D36: =C29 -> 63,333.33 € | E36: =D29 -> 63,333.33 € | F36: =E29 -> 63,333.33 €
B37: Cashflow | C37: =-AnfangsInvest[[#Totals],[Jahr]] -> -190,000.00 € | D37: =D35+D36 -> 69,750.00 € | E37: 82,000.00 € | F37: 90,750.00 €
B38: Kumulativer Cashflow | C38: =C37 -> -190,000.00 € | D38: =C38+D37 -> -120,250.00 € | E38: -38,250.00 € | F38: 52,500.00 €
B40: Auswertungsmetriken | C40: Werte
B41: Nettobarwert (NBW) | C41: =C37+(NPV(ROR,D37:F37)) -> 9,359.50 €
B42: Interner Zinsfuß (IKV) | C42: =IRR(C37:F37) -> 12.66%
B43: Amortisierungszeitraum in Jahren | C43: =IF(F38<=0,"Überschreitet 3 Jahre",IF(E38<=0,(F37-F38)/F37+2,IF(D38<=0,(E37-E38)/E37+1,IF(C38<=0,(D37-D38)/D37,"N/V")))) -> 2.42
